fUSD/lending_fUSD_20260202
["ID","MTS","AMOUNT","RATE_DAILY","PERIOD"]
[404353415,1770072644855,-500.0,0.00013698,2]
[404353416,1770072644864,-846.12,0.00013698,2]
[404353417,1770072644873,-500.0,0.00013698,2]
[404353418,1770072644883,-846.12,0.00013698,2]
[404353419,1770072644892,-500.0,0.00013698,2]
[404353420,1770072644900,-846.12,0.00013698,2]
[404353421,1770072644909,-500.0,0.00013698,2]
[404353422,1770072644918,-846.12,0.00013698,2]
[404353423,1770072644927,-500.0,0.00013698,2]
[404353424,1770072644936,-846.12,0.00013698,2]
[404353425,1770072644944,-846.12,0.00013698,2]
[404353426,1770072644953,-500.0,0.00013698,2]
[404353427,1770072644962,-846.12,0.00013698,2]
[404353428,1770072644971,-500.0,0.00013698,2]
[404353429,1770072644981,-846.12,0.00013698,2]
[404353430,1770072644993,-453.81105922,0.00013698,2]
[404353431,1770072645002,-846.12,0.00013698,2]
[404353432,1770072645011,-846.12,0.00013698,2]
[404353433,1770072645021,-500.0,0.00013698,2]
[404353434,1770072645031,-500.0,0.00013698,2]
[404353435,1770072645040,-846.12,0.00013698,2]
[404353436,1770072645049,-500.0,0.00013698,2]
[404353437,1770072645059,-846.12,0.00013698,2]
[404353438,1770072645068,-500.0,0.00013698,2]
[404353439,1770072645078,-846.12,0.00013698,2]
[404353440,1770072645087,-500.0,0.00013698,2]
[404353441,1770072645096,-296.70673574,0.00013698,2]
[404353442,1770072645105,-846.12,0.00013698,2]
[404353443,1770072645115,-500.0,0.00013698,2]
[404353444,1770072645124,-846.12,0.00013698,2]
[404353445,1770072645133,-500.0,0.00013698,2]
[404353446,1770072645142,-846.12,0.00013698,2]
[404353447,1770072645151,-500.0,0.00013698,2]
[404353448,1770072645160,-846.12,0.00013698,2]
[404353449,1770072645170,-500.0,0.00013698,2]
[404353450,1770072645179,-500.0,0.00013698,2]
[404353451,1770072645188,-846.12,0.00013698,2]
[404353452,1770072645197,-500.0,0.00013698,2]
[404353453,1770072645207,-846.12,0.00013698,2]
[404353454,1770072645216,-846.12,0.00013698,2]
[404353455,1770072645229,-510.82232822,0.00013698,2]
[404353456,1770072645239,-846.2298754,0.00013698,2]
[404353457,1770072645248,-500.0,0.00013698,2]
[404353458,1770072645258,-500.0,0.00013698,2]
[404353459,1770072645267,-500.0,0.00013698,2]
[404353460,1770072645276,-500.0,0.00013698,2]
[404353461,1770072645286,-500.0,0.00013698,2]
[404353462,1770072645296,-500.0,0.00013698,2]
[404353463,1770072645305,-500.0,0.00013698,2]
[404353464,1770072645315,-500.0,0.00013698,2]
[404353465,1770072645325,-500.0,0.00013698,2]
[404353466,1770072645334,-500.0,0.00013698,2]
[404353467,1770072645343,-500.0,0.00013698,2]
[404353468,1770072645352,-500.0,0.00013698,2]
[404353469,1770072645362,-500.0,0.00013698,2]
[404353470,1770072645371,-500.0,0.00013698,2]
[404353471,1770072645380,-500.0,0.00013698,2]
[404353472,1770072645389,-500.0,0.00013698,2]
[404353473,1770072645398,-500.0,0.00013698,2]
[404353474,1770072645408,-500.0,0.00013698,2]
[404353475,1770072645417,-500.0,0.00013698,2]
[404353476,1770072645426,-317.29293236,0.00013698,2]
[404353477,1770072645435,-649.78,0.00013698,2]
[404353478,1770072645444,-649.78,0.00013698,2]
[404353479,1770072645453,-649.78,0.00013698,2]
[404353480,1770072645462,-649.78,0.00013698,2]
[404353481,1770072645483,-649.78,0.00013698,2]
[404353482,1770072645505,-649.78,0.00013698,2]
[404353483,1770072645516,-649.78,0.00013698,2]
[404353484,1770072645528,-649.78,0.00013698,2]
[404353485,1770072645538,-649.78,0.00013698,2]
[404353486,1770072645548,-649.78,0.00013698,2]
[404353487,1770072645557,-649.78,0.00013698,2]
[404353488,1770072645567,-649.78,0.00013698,2]
[404353489,1770072645577,-649.78,0.00013698,2]
[404353490,1770072645586,-649.78,0.00013698,2]
[404353491,1770072645596,-649.78,0.00013698,2]
[404353492,1770072645606,-649.78,0.00013698,2]
[404353493,1770072645615,-649.78,0.00013698,2]
[404353494,1770072645624,-649.78,0.00013698,2]
[404353495,1770072645633,-649.78,0.00013698,2]
[404353496,1770072645642,-649.78,0.00013698,2]
[404353497,1770072645651,-649.78,0.00013698,2]
[404353498,1770072645660,-649.78,0.00013698,2]
[404353499,1770072645669,-649.78,0.00013698,2]
[404353500,1770072645678,-649.95670735,0.00013698,2]
[404353501,1770072645687,-1355.09,0.00013698,2]
[404353502,1770072645697,-1355.09,0.00013698,2]
[404353503,1770072645707,-1355.09,0.00013698,2]
[404353504,1770072645716,-1355.09,0.00013698,2]
[404353505,1770072645726,-1355.09,0.00013698,2]
[404353506,1770072645735,-1355.09,0.00013698,2]
[404353507,1770072645745,-1355.09,0.00013698,2]
[404353508,1770072645754,-1355.09,0.00013698,2]
[404353509,1770072645763,-1355.09,0.00013698,2]
[404353510,1770072645773,-1355.09,0.00013698,2]
[404353511,1770072645783,-1355.09,0.00013698,2]
[404353512,1770072645793,-1355.09,0.00013698,2]
[404353513,1770072645803,-1355.09,0.00013698,2]
[404353514,1770072645812,-1355.09,0.00013698,2]
[404353515,1770072645822,-1355.09,0.00013698,2]
[404353516,1770072645832,-1355.09,0.00013698,2]
[404353517,1770072645842,-1355.09,0.00013698,2]
[404353518,1770072645852,-1355.09,0.00013698,2]
[404353519,1770072645862,-1355.09,0.00013698,2]
[404353520,1770072645872,-1355.09,0.00013698,2]
[404353521,1770072645881,-1355.09,0.00013698,2]
[404353522,1770072645897,-1355.09,0.00013698,2]
[404353523,1770072645918,-1355.09,0.00013698,2]
[404353524,1770072645932,-1355.19124694,0.00013698,2]
[404353525,1770072645944,-500.0,0.00013698,2]
[404353526,1770072645960,-500.0,0.00013698,2]
[404353527,1770072645972,-500.0,0.00013698,2]
[404353528,1770072645984,-500.0,0.00013698,2]
[404353530,1770072646000,-500.0,0.00013698,2]
[404353532,1770072646011,-500.0,0.00013698,2]
[404353534,1770072646022,-172.30032513,0.00013698,2]
[404353536,1770072646034,-540.92,0.00013698,2]
[404353538,1770072646044,-540.92,0.00013698,2]
[404353540,1770072646056,-540.92,0.00013698,2]
[404353542,1770072646068,-540.92,0.00013698,2]
[404353544,1770072646078,-540.92,0.00013698,2]
[404353546,1770072646088,-540.92,0.00013698,2]
[404353547,1770072646098,-540.92,0.00013698,2]
[404353548,1770072646109,-540.92,0.00013698,2]
[404353549,1770072646120,-540.92,0.00013698,2]
[404353550,1770072646130,-540.92,0.00013698,2]
[404353551,1770072646141,-540.92,0.00013698,2]
[404353552,1770072646151,-540.92,0.00013698,2]
[404353553,1770072646161,-540.92,0.00013698,2]
[404353554,1770072646173,-540.92,0.00013698,2]
[404353555,1770072646183,-540.92,0.00013698,2]
[404353556,1770072646194,-540.92,0.00013698,2]
[404353557,1770072646205,-540.92,0.00013698,2]
[404353558,1770072646220,-540.92,0.00013698,2]
[404353559,1770072646232,-540.92,0.00013698,2]
[404353560,1770072646244,-540.92,0.00013698,2]
[404353561,1770072646256,-540.92,0.00013698,2]
[404353562,1770072646267,-540.92,0.00013698,2]
[404353563,1770072646277,-540.92,0.00013698,2]
[404353564,1770072646288,-541.05728677,0.00013698,2]
[404353565,1770072646300,-500.0,0.00013698,2]
[404353566,1770072646310,-500.0,0.00013698,2]
[404353567,1770072646321,-500.0,0.00013698,2]
[404353568,1770072646332,-500.0,0.00013698,2]
[404353569,1770072646343,-500.0,0.00013698,2]
[404353570,1770072646357,-500.0,0.00013698,2]
[404353571,1770072646369,-500.0,0.00013698,2]
[404353572,1770072646382,-500.0,0.00013698,2]
[404353573,1770072646395,-500.0,0.00013698,2]
[404353574,1770072646407,-500.0,0.00013698,2]
[404353575,1770072646417,-500.0,0.00013698,2]
[404353576,1770072646427,-431.16604066,0.00013698,2]
[404353577,1770072646440,-500.0,0.00013698,2]
[404353578,1770072646450,-500.0,0.00013698,2]
[404353579,1770072646459,-500.0,0.00013698,2]
[404353580,1770072646469,-500.0,0.00013698,2]
[404353581,1770072646479,-500.0,0.00013698,2]
[404353582,1770072646490,-500.0,0.00013698,2]
[404353583,1770072646501,-500.0,0.00013698,2]
[404353584,1770072646513,-500.0,0.00013698,2]
[404353585,1770072646524,-500.0,0.00013698,2]
[404353586,1770072646535,-500.0,0.00013698,2]
[404353587,1770072646546,-378.11080496,0.00013698,2]
[404353588,1770072646556,-200.0,0.00013699,2]
[404353589,1770072646566,-272.51,0.00013699,2]
[404353590,1770072646576,-227.09,0.00013699,2]
[404353592,1770072646586,-189.24,0.00013699,2]
[404353593,1770072646595,-157.7,0.00013699,2]
[404353594,1770072646605,-788.53,0.00013699,2]
[404353595,1770072646614,-151.0,0.00013699,2]
[404353596,1770072646623,-151.0,0.00013699,2]
[404353597,1770072646636,-711.64,0.00013699,2]
[404353599,1770072646645,-21997.97,0.000137,2]
[404353601,1770072646655,-21997.97,0.000137,2]
[404353602,1770072646664,-891.8,0.00013714,2]
[404353603,1770072646673,-500.0,0.00013836,2]
[404353604,1770072646683,-208.65826531,0.00013836,2]
[404353605,1770072646692,-200.0,0.00013836,2]
[404353607,1770072646703,-151.0,0.00013862,2]
[404353609,1770072646712,-151.0,0.00013862,2]
[404353610,1770072646721,-256.85,0.00013885,2]
[404353611,1770072646731,-151.0,0.00013886,2]
[404353612,1770072646740,-151.0,0.00013886,2]
[404353613,1770072646750,-151.0,0.00013908,2]
[404353614,1770072646760,-151.0,0.00013908,2]
[404353615,1770072646769,-151.0,0.00013912,2]
[404353616,1770072646779,-151.0,0.00013912,2]
[404353617,1770072646788,-217.15233878,0.00013966,2]
[404353618,1770072646797,-1776.30922209,0.00013966,2]
[404353619,1770072646808,-162.53028247,0.00013973,2]
[404353620,1770072646817,-225.36065254,0.00013973,2]
[404353621,1770072646829,-500.0,0.00013973,2]
[404353622,1770072646842,-500.0,0.00013973,2]
[404353623,1770072646861,-500.0,0.00013973,2]
[404353624,1770072646879,-175.91942146,0.00013973,2]
[404353625,1770072647081,-500.94761523,0.00013973,2]
[404353626,1770072647094,-170.36367963,0.00013973,2]
[404353627,1770072647105,-500.0,0.00013973,2]
[404353628,1770072647116,-569.16951839,0.00013973,2]
[404353629,1770072647128,-225.48373467,0.00013973,2]
[404353630,1770072647137,-500.0,0.00013973,2]
[404353631,1770072647151,-500.0,0.00013973,2]
[404353632,1770072647160,-500.0,0.00013973,2]
[404353633,1770072647170,-500.0,0.00013973,2]
[404353634,1770072647180,-500.0,0.00013973,2]
[404353635,1770072647203,-500.0,0.00013973,2]
[404353636,1770072647216,-500.0,0.00013973,2]
[404353637,1770072647226,-500.0,0.00013973,2]
[404353638,1770072647236,-164.70227396,0.00013973,2]
[404353639,1770072647247,-164.14571343,0.00013973,2]
[404353640,1770072647257,-168.13382401,0.00013973,2]
[404353641,1770072647267,-541.62569807,0.00013973,2]
[404353642,1770072647278,-500.0,0.00013973,2]
[404353643,1770072647288,-500.0,0.00013973,2]
[404353644,1770072647299,-500.0,0.00013973,2]
[404353645,1770072647309,-500.0,0.00013973,2]
[404353646,1770072647319,-500.0,0.00013973,2]
[404353647,1770072647329,-500.0,0.00013973,2]
[404353648,1770072647339,-500.0,0.00013973,2]
[404353649,1770072647349,-500.0,0.00013973,2]
[404353650,1770072647358,-500.0,0.00013973,2]
[404353651,1770072647368,-500.0,0.00013973,2]
[404353652,1770072647379,-500.0,0.00013973,2]
[404353653,1770072647388,-500.0,0.00013973,2]
[404353654,1770072647398,-500.0,0.00013973,2]
[404353655,1770072647408,-166.29434153,0.00013973,2]
[404353656,1770072647418,-500.0,0.00013973,2]
[404353657,1770072647428,-500.0,0.00013973,2]
[404353658,1770072647438,-500.0,0.00013973,2]
[404353659,1770072647448,-163.90719075,0.00013973,2]
[404353660,1770072647458,-500.0,0.00013973,2]
[404353661,1770072647468,-500.0,0.00013973,2]
[404353662,1770072647480,-500.0,0.00013973,2]
[404353663,1770072647491,-500.0,0.00013973,2]
[404353664,1770072647501,-500.0,0.00013973,2]
[404353665,1770072647511,-500.0,0.00013973,2]
[404353666,1770072647520,-891.8,0.00013988,2]
[404353667,1770072647530,-150.0064213,0.0001414,2]
[404353668,1770072647539,-891.8,0.00014262,2]
[404353669,1770072647553,-500.0,0.00014384,2]
[404353670,1770072647563,-200.0,0.00014384,2]
[404353671,1770072647575,-205.32,0.000144,2]
[404353672,1770072647586,-270.0455652,0.00014514,2]
[404353673,1770072647596,-225.18697532,0.00014514,2]
[404353674,1770072647608,-1842.03266331,0.00014514,2]
[404353675,1770072647618,-1000.0,0.00014521,2]
[404353676,1770072647630,-1000.0,0.00014521,2]
[404353677,1770072647640,-1005.56383771,0.00014521,2]
[404353678,1770072647651,-1000.0,0.00014521,2]
[404353679,1770072647663,-1000.0,0.00014521,2]
[404353680,1770072647673,-1000.0,0.00014521,2]
[404353681,1770072647684,-1000.0,0.00014521,2]
[404353682,1770072647694,-1000.0,0.00014521,2]
[404353683,1770072647705,-1000.0,0.00014521,2]
[404353684,1770072647714,-1000.0,0.00014521,2]
[404353685,1770072647724,-545.34481126,0.00014521,2]
[404353686,1770072647738,-543.53042842,0.00014521,2]
[404353687,1770072647748,-1000.0,0.00014521,2]
[404353688,1770072647759,-1000.0,0.00014521,2]
[404353689,1770072647768,-490.75391952,0.00014521,2]
[404353690,1770072647779,-1000.0,0.00014521,2]
[404353691,1770072647789,-500.0,0.00014521,2]
[404353692,1770072647799,-510.87393165,0.00014521,2]
[404353693,1770072647810,-1000.0,0.00014521,2]
[404353694,1770072647820,-1000.0,0.00014521,2]
[404353695,1770072647831,-1000.0,0.00014521,2]
[404353696,1770072647842,-245.04092473,0.00014521,2]
[404353697,1770072647853,-1000.0,0.00014521,2]
[404353698,1770072647865,-1000.0,0.00014521,2]
[404353699,1770072647875,-656.95111861,0.00014521,2]
[404353700,1770072647886,-1000.0,0.00014521,2]
[404353701,1770072647896,-1000.0,0.00014521,2]
[404353702,1770072647906,-460.07091613,0.00014521,2]
[404353703,1770072647918,-1000.0,0.00014521,2]
[404353704,1770072647932,-259.40505883,0.00014521,2]
[404353705,1770072647944,-1000.0,0.00014521,2]
[404353706,1770072647955,-1000.0,0.00014521,2]
[404353707,1770072647966,-500.0,0.00014521,2]
[404353708,1770072647977,-891.8,0.00014536,2]
[404353709,1770072647990,-359.76179104,0.00014785,2]
[404353710,1770072648002,-891.8,0.0001481,2]
[404353711,1770072648013,-1613.0,0.00014864,2]
[404353712,1770072648023,-6453.0,0.00014864,2]
[404353713,1770072648034,-2129.0,0.00014868,2]
[404353714,1770072648044,-343.33,0.00014888,2]
[404353715,1770072648054,-179.5507367,0.000149,2]
[404353716,1770072648067,-500.0,0.00014932,2]
[404353717,1770072648077,-200.0,0.00014932,2]
[404353718,1770072648088,-167.02189,0.00014968,2]
[404353719,1770072648098,-167.02189,0.00014968,2]
[404353720,1770072648108,-167.02189,0.00014968,2]
[404353721,1770072648118,-167.02189,0.00014968,2]
[404353722,1770072648132,-151.0,0.00014968,2]
[404353723,1770072648142,-250.0,0.00015,2]
[404353724,1770072648151,-280.03725112,0.00015062,2]
[404353725,1770072648161,-233.51889341,0.00015062,2]
[404353726,1770072648171,-1910.18787185,0.00015062,2]
[404353727,1770072648180,-1539.34306558,0.00015068,2]
[404353728,1770072648191,-1500.0,0.00015068,2]
[404353729,1770072648201,-726.83579927,0.00015068,2]
[404353730,1770072648212,-1500.0,0.00015068,2]
[404353731,1770072648223,-1500.0,0.00015068,2]
[404353732,1770072648232,-1500.0,0.00015068,2]
[404353733,1770072648243,-503.2603763,0.00015068,2]
[404353734,1770072648253,-1500.0,0.00015068,2]
[404353735,1770072648262,-1500.0,0.00015068,2]
[404353736,1770072648272,-1500.0,0.00015068,2]
[404353737,1770072648283,-1500.0,0.00015068,2]
[404353738,1770072648292,-1500.0,0.00015068,2]
[404353739,1770072648302,-1500.0,0.00015068,2]
[404353740,1770072648312,-1500.0,0.00015068,2]
[404353741,1770072648325,-1550.7159852,0.00015068,2]
[404353742,1770072648335,-1506.79391477,0.00015068,2]
[404353743,1770072648346,-1500.0,0.00015068,2]
[404353744,1770072648355,-1023.62775042,0.00015068,2]
[404353745,1770072648365,-1001.69360348,0.00015068,2]
[404353746,1770072648375,-411.8365552,0.00015068,2]
[404353747,1770072648385,-152.81544497,0.00015068,2]
[404353748,1770072648394,-1500.0,0.00015068,2]
[404353749,1770072648404,-837.24894,0.00015068,2]
[404353750,1770072648414,-837.24894,0.00015068,2]
[404353751,1770072648423,-837.24894,0.00015068,2]
[404353752,1770072648433,-837.24894,0.00015068,2]
[404353753,1770072648443,-891.8,0.00015084,2]
[404353754,1770072648452,-891.8,0.00015358,2]
[404353755,1770072648462,-163.34993731,0.00015473,2]
[404353756,1770072648472,-500.46237197,0.00015473,2]
[404353757,1770072648482,-163.12661798,0.00015473,2]
[404353758,1770072648491,-500.0,0.00015473,2]
[404353759,1770072648501,-500.0,0.00015473,2]
[404353760,1770072648511,-500.0,0.00015473,2]
[404353761,1770072648522,-163.46067997,0.00015473,2]
[404353762,1770072648532,-500.0,0.00015473,2]
[404353763,1770072648542,-500.0,0.00015473,2]
[404353764,1770072648551,-500.0,0.00015473,2]
[404353765,1770072648561,-500.0,0.00015473,2]
[404353766,1770072648570,-500.0,0.00015473,2]
[404353767,1770072648580,-500.0,0.00015473,2]
[404353768,1770072648589,-500.0,0.00015473,2]
[404353769,1770072648599,-500.0,0.00015473,2]
[404353770,1770072648608,-500.0,0.00015473,2]
[404353771,1770072648618,-574.06272579,0.00015473,2]
[404353772,1770072648628,-500.0,0.00015473,2]
[404353773,1770072648639,-500.0,0.00015473,2]
[404353774,1770072648649,-500.62768041,0.00015473,2]
[404353775,1770072648658,-500.0,0.00015473,2]
[404353776,1770072648667,-161.45537985,0.00015473,2]
[404353777,1770072648677,-160.54295648,0.00015473,2]
[404353778,1770072648686,-500.40906893,0.00015473,2]
[404353779,1770072648696,-151.07783782,0.00015473,2]
[404353780,1770072648705,-500.0,0.00015473,2]
[404353781,1770072648715,-500.0,0.00015473,2]
[404353782,1770072648724,-500.0,0.00015473,2]
[404353783,1770072648733,-500.0,0.00015473,2]
[404353784,1770072648743,-500.6120606,0.00015473,2]
[404353785,1770072648753,-464.35211832,0.00015473,2]
[404353786,1770072648762,-559.67308476,0.00015473,2]
[404353787,1770072648772,-500.0,0.00015473,2]
[404353788,1770072648781,-500.0,0.00015473,2]
[404353789,1770072648791,-160.61738464,0.00015473,2]
[404353790,1770072648800,-500.0,0.00015473,2]
[404353791,1770072648809,-500.41005015,0.00015473,2]
[404353792,1770072648819,-200.70028911,0.00015473,2]
[404353793,1770072648828,-500.0,0.00015473,2]
[404353794,1770072648838,-500.0,0.00015473,2]
[404353795,1770072648847,-500.0,0.00015473,2]
[404353796,1770072648856,-512.94754167,0.00015473,2]
[404353797,1770072648866,-500.0,0.00015473,2]
[404353798,1770072648875,-500.0,0.00015473,2]
[404353799,1770072648885,-500.0,0.00015473,2]
[404353800,1770072648895,-500.0,0.00015473,2]
[404353801,1770072648904,-500.0,0.00015473,2]
[404353802,1770072648914,-460.30125151,0.00015473,2]
[404353803,1770072648923,-500.0,0.00015473,2]
[404353804,1770072648932,-336.43827265,0.00015473,2]
[404353805,1770072648941,-500.0,0.00015473,2]
[404353806,1770072648951,-500.0,0.00015473,2]
[404353807,1770072648960,-500.0,0.00015473,2]
[404353808,1770072648969,-500.63586771,0.00015473,2]
[404353809,1770072648979,-500.0,0.00015473,2]
[404353810,1770072648992,-500.0,0.00015473,2]
[404353811,1770072649001,-500.0,0.00015473,2]
[404353812,1770072649011,-500.0,0.00015473,2]
[404353813,1770072649020,-550.09529227,0.00015473,2]
[404353814,1770072649031,-522.30858015,0.00015473,2]
[404353815,1770072649040,-500.0,0.00015473,2]
[404353816,1770072649049,-340.09137446,0.00015473,2]
[404353817,1770072649061,-185.46503654,0.00015473,2]
[404353818,1770072649071,-500.0,0.00015473,2]
[404353819,1770072649080,-558.47394043,0.00015473,2]
[404353820,1770072649090,-168.03217975,0.00015473,2]
[404353821,1770072649099,-500.0,0.00015473,2]
[404353822,1770072649109,-500.0,0.00015473,2]
[404353823,1770072649118,-500.0,0.00015473,2]
[404353824,1770072649128,-500.0,0.00015473,2]
[404353825,1770072649137,-565.00011393,0.00015473,2]
[404353826,1770072649147,-500.0,0.00015473,2]
[404353827,1770072649156,-500.0,0.00015473,2]
[404353828,1770072649166,-500.0,0.00015473,2]
[404353829,1770072649175,-500.0,0.00015473,2]
[404353830,1770072649185,-486.29318482,0.00015473,2]
[404353831,1770072649194,-500.0,0.00015473,2]
[404353832,1770072649205,-500.0,0.0001548,2]
[404353833,1770072649215,-200.0,0.0001548,2]
[404353834,1770072649224,-150.0064213,0.0001552,2]
[404353835,1770072649234,-360.57236075,0.0001561,2]
[404353836,1770072649243,-242.15909246,0.0001561,2]
[404353837,1770072649252,-1980.86482311,0.0001561,2]
[404353838,1770072649262,-1517.4616613,0.00015616,2]
[404353839,1770072649271,-583.71186665,0.00015616,2]
[404353840,1770072649281,-2000.0,0.00015616,2]
[404353841,1770072649290,-2000.0,0.00015616,2]
[404353842,1770072649300,-1879.40909817,0.00015616,2]
[404353843,1770072649310,-1666.54524169,0.00015616,2]
[404353844,1770072649319,-1006.04407484,0.00015616,2]
[404353845,1770072649329,-2000.0,0.00015616,2]
[404353846,1770072649338,-2000.0,0.00015616,2]
[404353847,1770072649347,-2000.0,0.00015616,2]
[404353848,1770072649356,-2000.0,0.00015616,2]
[404353849,1770072649365,-2000.0,0.00015616,2]
[404353850,1770072649375,-2000.0,0.00015616,2]
[404353851,1770072649384,-891.95586456,0.00015632,2]
[404353852,1770072649393,-198.66860481,0.00015751,5]
[404353853,1770072649404,-360.21,0.00015851,2]
[404353854,1770072649413,-1000.0,0.00015918,2]
[404353855,1770072649423,-5000.0,0.0001596,2]
[404353856,1770072649432,-5003.0,0.00016,2]
[404353857,1770072649442,-500.0,0.00016021,2]
[404353858,1770072649451,-494.98211284,0.00016021,2]
[404353859,1770072649460,-1000.0,0.00016021,2]
[404353860,1770072649469,-1000.0,0.00016021,2]
[404353861,1770072649479,-500.0,0.00016021,2]
[404353862,1770072649489,-500.0,0.00016021,2]
[404353863,1770072649499,-504.20951303,0.00016021,2]
[404353864,1770072649509,-1000.0,0.00016021,2]
[404353865,1770072649518,-1000.0,0.00016021,2]
[404353866,1770072649528,-502.15998223,0.00016021,2]
[404353867,1770072649538,-1000.0,0.00016021,2]
[404353868,1770072649548,-1000.0,0.00016021,2]
[404353869,1770072649559,-1000.0,0.00016021,2]
[404353870,1770072649569,-1000.0,0.00016021,2]
[404353871,1770072649581,-1128.44291984,0.00016021,2]
[404353872,1770072649590,-960.71724918,0.00016021,2]
[404353873,1770072649600,-486.90150068,0.00016021,2]
[404353874,1770072649683,-335.25607575,0.00016021,2]
[404353875,1770072649693,-1000.0,0.00016021,2]
[404353876,1770072649703,-1000.0,0.00016021,2]
[404353877,1770072649712,-1000.0,0.00016021,2]
[404353878,1770072649723,-500.0,0.00016021,2]
[404353879,1770072649734,-1000.0,0.00016021,2]
[404353880,1770072649743,-1000.0,0.00016021,2]
[404353881,1770072649758,-1000.0,0.00016021,2]
[404353882,1770072649767,-1000.0,0.00016021,2]
[404353883,1770072649776,-1000.0,0.00016021,2]
[404353884,1770072649785,-1000.0,0.00016021,2]
[404353885,1770072649795,-1000.0,0.00016021,2]
[404353886,1770072649804,-501.28378078,0.00016021,2]
[404353887,1770072649814,-500.0,0.00016021,2]
[404353888,1770072649824,-1000.0,0.00016021,2]
[404353889,1770072649834,-1000.0,0.00016021,2]
[404353890,1770072649843,-1000.0,0.00016021,2]
[404353891,1770072649855,-1000.0,0.00016021,2]
[404353892,1770072649865,-1000.0,0.00016021,2]
[404353893,1770072649876,-1000.0,0.00016021,2]
[404353894,1770072649884,-1000.0,0.00016021,2]
[404353895,1770072649894,-1000.0,0.00016021,2]
[404353896,1770072649904,-1000.0,0.00016021,2]
[404353897,1770072649912,-1000.0,0.00016021,2]
[404353898,1770072649922,-1000.0,0.00016021,2]
[404353899,1770072649931,-1000.0,0.00016021,2]
[404353900,1770072649940,-1000.0,0.00016021,2]
[404353901,1770072649949,-500.0,0.00016028,2]
[404353902,1770072649959,-200.0,0.00016028,2]
[404353903,1770072649967,-9999.99,0.00016116,2]
[404353904,1770072649976,-373.07297731,0.00016154,2]
[404353905,1770072649987,-621.78829552,0.00016156,2]
[404353906,1770072649998,-775.47832561,0.00016156,2]
[404353907,1770072650007,-251.11897888,0.00016158,2]
[404353908,1770072650016,-2054.15682157,0.00016158,2]
[404353909,1770072650026,-2500.0,0.00016164,2]
[404353910,1770072650037,-2315.26732966,0.00016164,2]
[404353911,1770072650046,-1309.50611672,0.00016164,2]
[404353912,1770072650054,-2500.0,0.00016164,2]
[404353913,1770072650065,-1518.20605405,0.00016164,2]
[404353914,1770072650073,-973.78998774,0.00016164,2]
[404353915,1770072650083,-956.63226471,0.00016164,2]
[404353916,1770072650091,-2500.0,0.00016164,2]
[404353917,1770072650100,-205.32,0.00016194,2]
[404353918,1770072650109,-2258.0,0.0001635,2]
[404353919,1770072650118,-9035.0,0.0001635,2]
[404353920,1770072650127,-3312.0,0.00016354,2]
[404353921,1770072650136,-519.2350024,0.00016437,2]
[404353922,1770072650146,-151.0,0.00016438,2]
[404353923,1770072650155,-151.0,0.00016438,2]
[404353924,1770072650164,-2000.0,0.00016438,2]
[404353925,1770072650173,-1119.06497101,0.00016438,2]
[404353926,1770072650183,-1119.06497101,0.00016438,2]
[404353927,1770072650193,-1119.06497101,0.00016438,2]
[404353928,1770072650202,-1119.06497101,0.00016438,2]